[Event "Early-Titled-Tuesday-Blitz-April-16-2024"]
[Site "Chess.com"]
[Date "2024.04.16"]
[Round "3"]
[White "jinxy2009"]
[Black "Aminazinas"]
[Result "1-0"]
[WhiteElo "2323"]
[BlackElo "2545"]
[TimeControl "180+1"]
[EndTime "8:29:49 PDT"]
[Termination "jinxy2009 won by checkmate"]

1. e4 {[%clk 0:03:00.9]} 1... e5 {[%clk 0:03:00]} 2. Nf3 {[%clk 0:03:00.6]} 2...
Nc6 {[%clk 0:03:00.4]} 3. Bb5 {[%clk 0:02:58.6]} 3... a6 {[%clk 0:03:00.2]} 4.
Ba4 {[%clk 0:02:58.8]} 4... Nf6 {[%clk 0:03:00.3]} 5. O-O {[%clk 0:02:55.7]}
5... Be7 {[%clk 0:03:00.1]} 6. Re1 {[%clk 0:02:55]} 6... b5 {[%clk 0:03:00.1]}
7. Bb3 {[%clk 0:02:54.9]} 7... O-O {[%clk 0:03:01]} 8. a4 {[%clk 0:02:53.3]}
8... Bb7 {[%clk 0:03:00.2]} 9. d3 {[%clk 0:02:49.5]} 9... d6 {[%clk 0:02:57]}
10. h3 {[%clk 0:02:47]} 10... Na5 {[%clk 0:02:56.7]} 11. Ba2 {[%clk 0:02:43.7]}
11... c5 {[%clk 0:02:57]} 12. c3 {[%clk 0:02:39.2]} 12... b4 {[%clk 0:02:53.7]}
13. Nbd2 {[%clk 0:02:29.8]} 13... Bc6 {[%clk 0:02:44.6]} 14. Nc4 {[%clk
0:02:23.6]} 14... Rb8 {[%clk 0:02:40.2]} 15. Nxa5 {[%clk 0:02:19.3]} 15... Qxa5
{[%clk 0:02:39.7]} 16. Bd2 {[%clk 0:02:13.6]} 16... Bxa4 {[%clk 0:02:22.3]} 17.
Bxf7+ {[%clk 0:02:10.7]} 17... Rxf7 {[%clk 0:02:19.7]} 18. Qxa4 {[%clk
0:02:10.7]} 18... Qxa4 {[%clk 0:02:16.7]} 19. Rxa4 {[%clk 0:02:11.6]} 19... bxc3
{[%clk 0:02:11.9]} 20. bxc3 {[%clk 0:01:55.6]} 20... Rb2 {[%clk 0:02:03.1]} 21.
Rxa6 {[%clk 0:01:54.9]} 21... h6 {[%clk 0:02:00]} 22. Rea1 {[%clk 0:01:43.9]}
22... c4 {[%clk 0:01:58.2]} 23. Be3 {[%clk 0:01:29.5]} 23... cxd3 {[%clk
0:01:56.3]} 24. R6a4 {[%clk 0:01:21.3]} 24... Bf8 {[%clk 0:01:49.7]} 25. Rd1
{[%clk 0:01:20.3]} 25... Rc7 {[%clk 0:01:20.5]} 26. Rxd3 {[%clk 0:01:19.4]}
26... Rb3 {[%clk 0:01:13.6]} 27. Bd2 {[%clk 0:01:08.9]} 27... d5 {[%clk
0:01:11.1]} 28. Nxe5 {[%clk 0:00:57.1]} 28... dxe4 {[%clk 0:01:08]} 29. Rg3
{[%clk 0:00:45.1]} 29... Bd6 {[%clk 0:00:55.5]} 30. Bf4 {[%clk 0:00:21.8]} 30...
Rb5 {[%clk 0:00:47.8]} 31. Ra8+ {[%clk 0:00:19.9]} 31... Bf8 {[%clk 0:00:29.4]}
32. Ng6 {[%clk 0:00:18.2]} 32... Rf7 {[%clk 0:00:29.3]} 33. Bd6 {[%clk
0:00:16.8]} 33... Nd7 {[%clk 0:00:27.6]} 34. Nxf8 {[%clk 0:00:14.3]} 34... Nxf8
{[%clk 0:00:27.9]} 35. Bxf8 {[%clk 0:00:14.2]} 35... Rxf8 {[%clk 0:00:28.1]} 36.
Rxf8+ {[%clk 0:00:15]} 36... Kxf8 {[%clk 0:00:28.5]} 37. Re3 {[%clk 0:00:15.8]}
37... Rb1+ {[%clk 0:00:25.9]} 38. Kh2 {[%clk 0:00:16]} 38... Rf1 {[%clk
0:00:26.3]} 39. Kg3 {[%clk 0:00:16.3]} 39... Rc1 {[%clk 0:00:26.6]} 40. Kf4
{[%clk 0:00:15.4]} 40... Rc2 {[%clk 0:00:26.6]} 41. Kxe4 {[%clk 0:00:15.3]}
41... Rxf2 {[%clk 0:00:25.4]} 42. Rf3+ {[%clk 0:00:15.7]} 42... Rxf3 {[%clk
0:00:25.1]} 43. Kxf3 {[%clk 0:00:16.6]} 43... Ke7 {[%clk 0:00:25.8]} 44. Kf4
{[%clk 0:00:17.2]} 44... Ke6 {[%clk 0:00:26.1]} 45. c4 {[%clk 0:00:17]} 45... g6
{[%clk 0:00:26.7]} 46. Ke4 {[%clk 0:00:16.2]} 46... Kd6 {[%clk 0:00:27.2]} 47.
Kd4 {[%clk 0:00:15.9]} 47... Ke6 {[%clk 0:00:27.7]} 48. c5 {[%clk 0:00:15.9]}
48... g5 {[%clk 0:00:28.3]} 49. Ke4 {[%clk 0:00:15.3]} 49... h5 {[%clk
0:00:28.3]} 50. g3 {[%clk 0:00:13.9]} 50... Kf6 {[%clk 0:00:25.6]} 51. c6 {[%clk
0:00:13.4]} 51... Ke6 {[%clk 0:00:25.4]} 52. c7 {[%clk 0:00:13.8]} 52... Kd7
{[%clk 0:00:25.8]} 53. Kf5 {[%clk 0:00:14.2]} 53... g4 {[%clk 0:00:23.2]} 54. h4
{[%clk 0:00:14.6]} 54... Kxc7 {[%clk 0:00:23.5]} 55. Kg5 {[%clk 0:00:15.1]}
55... Kd6 {[%clk 0:00:24.4]} 56. Kxh5 {[%clk 0:00:16]} 56... Ke5 {[%clk
0:00:25.2]} 57. Kxg4 {[%clk 0:00:16.9]} 57... Kf6 {[%clk 0:00:26.1]} 58. Kf4
{[%clk 0:00:17]} 58... Kg6 {[%clk 0:00:27]} 59. g4 {[%clk 0:00:17.7]} 59... Kh6
{[%clk 0:00:27.9]} 60. Kf5 {[%clk 0:00:17.9]} 60... Kg7 {[%clk 0:00:28.6]} 61.
Kg5 {[%clk 0:00:18.4]} 61... Kh7 {[%clk 0:00:29.1]} 62. Kf6 {[%clk 0:00:18.4]}
62... Kg8 {[%clk 0:00:29.6]} 63. g5 {[%clk 0:00:18.6]} 63... Kh8 {[%clk
0:00:30.5]} 64. Kg6 {[%clk 0:00:18.6]} 64... Kg8 {[%clk 0:00:31.4]} 65. h5
{[%clk 0:00:16.5]} 65... Kh8 {[%clk 0:00:32.3]} 66. Kh6 {[%clk 0:00:15.5]} 66...
Kg8 {[%clk 0:00:33.2]} 67. g6 {[%clk 0:00:15.9]} 67... Kh8 {[%clk 0:00:34.1]}
68. Kg5 {[%clk 0:00:14.6]} 68... Kg8 {[%clk 0:00:35]} 69. Kf6 {[%clk 0:00:14.9]}
69... Kh8 {[%clk 0:00:35.9]} 70. g7+ {[%clk 0:00:12.3]} 70... Kg8 {[%clk
0:00:36.8]} 71. h6 {[%clk 0:00:10.1]} 71... Kh7 {[%clk 0:00:37.7]} 72. Kf7
{[%clk 0:00:10.7]} 72... Kxh6 {[%clk 0:00:37.9]} 73. g8=Q {[%clk 0:00:10.8]}
73... Kh5 {[%clk 0:00:38.8]} 74. Kf6 {[%clk 0:00:11.4]} 74... Kh6 {[%clk
0:00:38.8]} 75. Qg6# {[%clk 0:00:11.1]} 1-0

[Event "Early-Titled-Tuesday-Blitz-April-16-2024"]
[Site "Chess.com"]
[Date "2024.04.16"]
[Round "3"]
[White "santosalberto1987"]
[Black "Flawless_Fighter"]
[Result "0-1"]
[WhiteElo "2557"]
[BlackElo "2769"]
[TimeControl "180+1"]
[EndTime "8:29:51 PDT"]
[Termination "Flawless_Fighter won by resignation"]

1. e4 {[%clk 0:03:00.9]} 1... c6 {[%clk 0:02:58.7]} 2. c4 {[%clk 0:03:00.5]}
2... d5 {[%clk 0:02:59.6]} 3. exd5 {[%clk 0:03:00.9]} 3... cxd5 {[%clk
0:03:00.5]} 4. cxd5 {[%clk 0:03:01.5]} 4... Nf6 {[%clk 0:03:01.1]} 5. Qa4+
{[%clk 0:03:01.7]} 5... Nbd7 {[%clk 0:02:59.2]} 6. Bc4 {[%clk 0:03:01]} 6... g6
{[%clk 0:02:59]} 7. Nc3 {[%clk 0:03:00.9]} 7... Bg7 {[%clk 0:02:59.5]} 8. Nf3
{[%clk 0:03:01.3]} 8... O-O {[%clk 0:03:00.2]} 9. d3 {[%clk 0:03:01.5]} 9... a6
{[%clk 0:02:52.8]} 10. Qa3 {[%clk 0:03:01.2]} 10... b6 {[%clk 0:02:51.7]} 11.
O-O {[%clk 0:02:58.3]} 11... Bb7 {[%clk 0:02:51]} 12. Re1 {[%clk 0:02:58.3]}
12... b5 {[%clk 0:02:48.7]} 13. Bb3 {[%clk 0:02:58.2]} 13... Re8 {[%clk
0:02:44.6]} 14. h3 {[%clk 0:02:58.2]} 14... Nb6 {[%clk 0:02:42.8]} 15. d6 {[%clk
0:02:58.6]} 15... Qxd6 {[%clk 0:02:22.2]} 16. Qxd6 {[%clk 0:02:57.4]} 16... exd6
{[%clk 0:02:23.1]} 17. Be3 {[%clk 0:02:43.4]} 17... Nbd7 {[%clk 0:02:15.7]} 18.
Bd4 {[%clk 0:02:39.4]} 18... Bxf3 {[%clk 0:02:10.7]} 19. gxf3 {[%clk 0:02:38.9]}
19... Nc5 {[%clk 0:02:08.2]} 20. Bc2 {[%clk 0:02:36.6]} 20... Rac8 {[%clk
0:02:04.5]} 21. a3 {[%clk 0:02:32.3]} 21... Ne6 {[%clk 0:02:03.2]} 22. Be3
{[%clk 0:02:28.6]} 22... Nd7 {[%clk 0:02:02]} 23. Bd2 {[%clk 0:02:16.2]} 23...
Nd4 {[%clk 0:02:01.5]} 24. Rxe8+ {[%clk 0:02:07.9]} 24... Rxe8 {[%clk
0:02:02.4]} 25. Bd1 {[%clk 0:02:08.5]} 25... Ne5 {[%clk 0:02:03.1]} 26. Ne4
{[%clk 0:02:04.3]} 26... Nexf3+ {[%clk 0:02:02]} 27. Kg2 {[%clk 0:02:01.4]}
27... Rxe4 {[%clk 0:01:49.9]} 28. Bxf3 {[%clk 0:01:58.5]} 28... Nxf3 {[%clk
0:01:49.8]} 29. Kxf3 {[%clk 0:01:51.5]} 29... Rh4 {[%clk 0:01:49.8]} 30. Bf4
{[%clk 0:01:40.7]} 30... Bxb2 {[%clk 0:01:43.2]} 31. Ra2 {[%clk 0:01:37.3]}
31... Be5 {[%clk 0:01:41.5]} 32. Bxe5 {[%clk 0:01:34.8]} 32... dxe5 {[%clk
0:01:42.4]} 33. Kg3 {[%clk 0:01:34.5]} 33... Rd4 {[%clk 0:01:41.1]} 34. f3
{[%clk 0:01:30]} 34... Rxd3 {[%clk 0:01:39.4]} 35. a4 {[%clk 0:01:30.4]} 35...
b4 {[%clk 0:01:39.9]} 36. a5 {[%clk 0:01:30]} 36... Ra3 {[%clk 0:01:39.4]} 37.
Rb2 {[%clk 0:01:28.1]} 37... b3 {[%clk 0:01:37.4]} 38. Kg4 {[%clk 0:01:26.1]}
38... Kg7 {[%clk 0:01:37]} 39. h4 {[%clk 0:01:24.5]} 39... f5+ {[%clk
0:01:35.8]} 40. Kg3 {[%clk 0:01:24.8]} 40... Rxa5 {[%clk 0:01:26.6]} 41. Rxb3
{[%clk 0:01:24.8]} 41... Rb5 {[%clk 0:01:25.3]} 42. Rc3 {[%clk 0:01:24]} 42...
Rb7 {[%clk 0:01:24.8]} 43. Rc5 {[%clk 0:01:22]} 43... Re7 {[%clk 0:01:19.1]} 44.
Rc6 {[%clk 0:01:18.1]} 44... a5 {[%clk 0:01:13.8]} 45. Ra6 {[%clk 0:01:17.3]}
45... e4 {[%clk 0:01:10.6]} 46. fxe4 {[%clk 0:01:17]} 46... fxe4 {[%clk
0:01:11.3]} 47. Rxa5 {[%clk 0:01:17]} 47... e3 {[%clk 0:01:11.7]} 48. Ra1 {[%clk
0:01:16.4]} 48... Kh6 {[%clk 0:01:12.1]} 49. Kf3 {[%clk 0:01:14.3]} 49... e2
{[%clk 0:01:12.3]} 50. Re1 {[%clk 0:01:14]} 50... Kh5 {[%clk 0:01:12.8]} 51. Kf4
{[%clk 0:01:10.1]} 51... h6 {[%clk 0:01:08.9]} 52. Kg3 {[%clk 0:01:08.6]} 52...
Re6 {[%clk 0:01:04]} 53. Kf4 {[%clk 0:01:02.9]} 53... Re8 {[%clk 0:01:00.4]} 54.
Kg3 {[%clk 0:01:02.4]} 54... Re3+ {[%clk 0:00:56.3]} 55. Kf4 {[%clk 0:01:01.7]}
55... Rh3 {[%clk 0:00:56.1]} 56. Rxe2 {[%clk 0:01:01]} 56... Rxh4+ {[%clk
0:00:56.6]} 57. Kg3 {[%clk 0:01:01.1]} 57... g5 {[%clk 0:00:56.9]} 58. Re6
{[%clk 0:00:59.2]} 58... Rg4+ {[%clk 0:00:56.9]} 59. Kh3 {[%clk 0:00:59.2]}
59... Ra4 {[%clk 0:00:57.8]} 60. Re3 {[%clk 0:00:57.2]} 60... Rd4 {[%clk
0:00:56.2]} 61. Ra3 {[%clk 0:00:57.1]} 61... Rd6 {[%clk 0:00:52.7]} 62. Rb3
{[%clk 0:00:52.1]} 62... Kg6 {[%clk 0:00:53]} 63. Kg3 {[%clk 0:00:47.9]} 63...
h5 {[%clk 0:00:53.3]} 64. Rb8 {[%clk 0:00:46.5]} 64... h4+ {[%clk 0:00:52.7]}
65. Kg4 {[%clk 0:00:45.6]} 65... Rd4+ {[%clk 0:00:53]} 66. Kh3 {[%clk 0:00:46]}
66... Rd3+ {[%clk 0:00:52.8]} 67. Kg2 {[%clk 0:00:45.3]} 67... Kf5 {[%clk
0:00:53.3]} 68. Rb4 {[%clk 0:00:44.1]} 68... Re3 {[%clk 0:00:51.9]} 69. Rb5+
{[%clk 0:00:42.5]} 69... Kf4 {[%clk 0:00:51]} 70. Rb8 {[%clk 0:00:41.4]} 70...
Re2+ {[%clk 0:00:50.2]} 71. Kf1 {[%clk 0:00:40.8]} 71... Re5 {[%clk 0:00:50.2]}
72. Rb4+ {[%clk 0:00:39.4]} 72... Kf3 {[%clk 0:00:48.6]} 73. Rb3+ {[%clk
0:00:39.6]} 73... Re3 {[%clk 0:00:48.8]} 74. Rb8 {[%clk 0:00:39.7]} 74... Ra3
{[%clk 0:00:47]} 75. Kg1 {[%clk 0:00:37.9]} 75... g4 {[%clk 0:00:45.1]} 76. Rb1
{[%clk 0:00:33.8]} 76... g3 {[%clk 0:00:43.6]} 77. Rf1+ {[%clk 0:00:32.1]} 77...
Kg4 {[%clk 0:00:43.4]} 78. Rf8 {[%clk 0:00:31]} 78... Ra1+ {[%clk 0:00:42.2]}
0-1

[Event "Early-Titled-Tuesday-Blitz-April-16-2024"]
[Site "Chess.com"]
[Date "2024.04.16"]
[Round "3"]
[White "Koalaskakistis"]
[Black "Fantastic_Power"]
[Result "1-0"]
[WhiteElo "2563"]
[BlackElo "2735"]
[TimeControl "180+1"]
[EndTime "8:29:51 PDT"]
[Termination "Koalaskakistis won by resignation"]

1. c4 {[%clk 0:03:00.9]} 1... Nf6 {[%clk 0:03:00]} 2. Nc3 {[%clk 0:02:59.9]}
2... e5 {[%clk 0:03:00.2]} 3. e4 {[%clk 0:02:56.6]} 3... g6 {[%clk 0:02:56.3]}
4. g3 {[%clk 0:02:56.4]} 4... Bg7 {[%clk 0:02:54.7]} 5. Bg2 {[%clk 0:02:56.9]}
5... Nc6 {[%clk 0:02:54.5]} 6. Nge2 {[%clk 0:02:57.8]} 6... h5 {[%clk 0:02:53]}
7. h3 {[%clk 0:02:57.2]} 7... d6 {[%clk 0:02:52.9]} 8. d3 {[%clk 0:02:57.4]}
8... h4 {[%clk 0:02:50.8]} 9. g4 {[%clk 0:02:57.5]} 9... Nh7 {[%clk 0:02:51.4]}
10. Rb1 {[%clk 0:02:51.1]} 10... Ng5 {[%clk 0:02:48.5]} 11. Be3 {[%clk
0:02:43.5]} 11... Ne6 {[%clk 0:02:47.6]} 12. Qd2 {[%clk 0:02:39.7]} 12... g5
{[%clk 0:02:46.3]} 13. b4 {[%clk 0:02:37.7]} 13... Ncd4 {[%clk 0:02:44.7]} 14.
b5 {[%clk 0:02:26.9]} 14... Bd7 {[%clk 0:02:41.3]} 15. a4 {[%clk 0:02:05.2]}
15... c6 {[%clk 0:02:38.3]} 16. Ng1 {[%clk 0:01:31.4]} 16... Nf4 {[%clk
0:02:33.7]} 17. Bf3 {[%clk 0:01:27.3]} 17... O-O {[%clk 0:02:30.5]} 18. Bxd4
{[%clk 0:01:26]} 18... exd4 {[%clk 0:02:30.1]} 19. Nce2 {[%clk 0:01:25.5]} 19...
Be5 {[%clk 0:02:29.8]} 20. Nxf4 {[%clk 0:01:24.6]} 20... Bxf4 {[%clk 0:02:30.7]}
21. Qb2 {[%clk 0:01:22.1]} 21... Qf6 {[%clk 0:02:29.7]} 22. Ne2 {[%clk
0:01:15.3]} 22... Be5 {[%clk 0:02:29]} 23. Bg2 {[%clk 0:01:13.5]} 23... a6
{[%clk 0:02:24.4]} 24. b6 {[%clk 0:00:55.7]} 24... c5 {[%clk 0:01:56]} 25. a5
{[%clk 0:00:55.6]} 25... Rfe8 {[%clk 0:01:50.6]} 26. O-O {[%clk 0:00:52.1]}
26... Re6 {[%clk 0:01:26.2]} 27. f4 {[%clk 0:00:49.6]} 27... gxf4 {[%clk
0:01:25.3]} 28. Qd2 {[%clk 0:00:49.3]} 28... Qg5 {[%clk 0:01:21.7]} 29. Rf3
{[%clk 0:00:43.1]} 29... Rae8 {[%clk 0:01:15.3]} 30. Rbf1 {[%clk 0:00:32.9]}
30... Rf6 {[%clk 0:01:06.5]} 31. Nxf4 {[%clk 0:00:32.7]} 31... Rxf4 {[%clk
0:01:00.9]} 32. Rxf4 {[%clk 0:00:32.7]} 32... Bxf4 {[%clk 0:01:00.4]} 33. Qxf4
{[%clk 0:00:33.2]} 33... Qxf4 {[%clk 0:01:00.3]} 34. Rxf4 {[%clk 0:00:34.1]}
34... Kg7 {[%clk 0:00:58.9]} 35. g5 {[%clk 0:00:27.2]} 35... Re5 {[%clk
0:00:57.1]} 36. Rxh4 {[%clk 0:00:18.7]} 36... Rxg5 {[%clk 0:00:56.7]} 37. Kf2
{[%clk 0:00:19]} 37... Bc6 {[%clk 0:00:47.7]} 38. Rg4 {[%clk 0:00:11.5]} 38...
Rxg4 {[%clk 0:00:46.1]} 39. hxg4 {[%clk 0:00:12.4]} 39... Kg6 {[%clk 0:00:40.7]}
40. Kg3 {[%clk 0:00:12.1]} 40... Kg5 {[%clk 0:00:40.9]} 41. Bf3 {[%clk
0:00:12.4]} 41... Kg6 {[%clk 0:00:34.1]} 42. Kf4 {[%clk 0:00:12.5]} 42... f6
{[%clk 0:00:27.4]} 43. Bg2 {[%clk 0:00:09.4]} 43... Bd7 {[%clk 0:00:26.4]} 44.
Kg3 {[%clk 0:00:09.6]} 44... Kg5 {[%clk 0:00:26.3]} 45. e5 {[%clk 0:00:09.2]}
45... dxe5 {[%clk 0:00:05.2]} 46. Bxb7 {[%clk 0:00:09.5]} 46... f5 {[%clk
0:00:03]} 47. gxf5 {[%clk 0:00:08.9]} 47... Bxf5 {[%clk 0:00:03.9]} 48. Be4
{[%clk 0:00:08.8]} 48... Bc8 {[%clk 0:00:04.1]} 49. b7 {[%clk 0:00:08.8]} 49...
Bxb7 {[%clk 0:00:05]} 50. Bxb7 {[%clk 0:00:09.7]} 50... Kf5 {[%clk 0:00:05.9]}
51. Kf3 {[%clk 0:00:09.7]} 51... Kf6 {[%clk 0:00:05.8]} 52. Ke4 {[%clk 0:00:10]}
52... Ke6 {[%clk 0:00:06.2]} 53. Bxa6 {[%clk 0:00:10.7]} 53... Kd6 {[%clk
0:00:06.4]} 54. Bb5 {[%clk 0:00:11.2]} 54... Kc7 {[%clk 0:00:07.3]} 55. Kxe5
{[%clk 0:00:11.7]} 55... Kb7 {[%clk 0:00:08.2]} 56. Kd6 {[%clk 0:00:12.3]} 56...
Ka7 {[%clk 0:00:09.1]} 57. Kxc5 {[%clk 0:00:12.8]} 57... Ka8 {[%clk 0:00:10]}
58. Kxd4 {[%clk 0:00:13.7]} 58... Ka7 {[%clk 0:00:10.8]} 59. Kc5 {[%clk
0:00:14.4]} 59... Kb7 {[%clk 0:00:11.7]} 60. d4 {[%clk 0:00:15.3]} 60... Kc7
{[%clk 0:00:12.6]} 61. d5 {[%clk 0:00:16.1]} 61... Kb8 {[%clk 0:00:13.5]} 62.
Kb6 {[%clk 0:00:15.4]} 62... Ka8 {[%clk 0:00:13.5]} 63. d6 {[%clk 0:00:15.9]}
63... Kb8 {[%clk 0:00:14.4]} 64. d7 {[%clk 0:00:16]} 1-0

[Event "Early-Titled-Tuesday-Blitz-April-16-2024"]
[Site "Chess.com"]
[Date "2024.04.16"]
[Round "3"]
[White "FREDERICKtheMATE"]
[Black "FaustinoOro"]
[Result "1/2-1/2"]
[WhiteElo "2686"]
[BlackElo "2952"]
[TimeControl "180+1"]
[EndTime "8:29:55 PDT"]
[Termination "Game drawn by repetition"]

1. d4 {[%clk 0:03:00.9]} 1... d5 {[%clk 0:02:58.5]} 2. c4 {[%clk 0:03:01.3]}
2... e6 {[%clk 0:02:59]} 3. Nf3 {[%clk 0:03:01.5]} 3... a6 {[%clk 0:02:58.3]} 4.
c5 {[%clk 0:02:58.9]} 4... b6 {[%clk 0:02:51.5]} 5. cxb6 {[%clk 0:02:58.6]} 5...
cxb6 {[%clk 0:02:52.4]} 6. Nc3 {[%clk 0:02:58.1]} 6... Nf6 {[%clk 0:02:52.2]} 7.
Bf4 {[%clk 0:02:58.1]} 7... Bd6 {[%clk 0:02:51.8]} 8. Bxd6 {[%clk 0:02:57.6]}
8... Qxd6 {[%clk 0:02:52.7]} 9. e3 {[%clk 0:02:57.8]} 9... O-O {[%clk
0:02:52.9]} 10. Bd3 {[%clk 0:02:58.1]} 10... Nc6 {[%clk 0:02:51.9]} 11. O-O
{[%clk 0:02:58.6]} 11... Bd7 {[%clk 0:02:52.2]} 12. Rc1 {[%clk 0:02:58.1]} 12...
h6 {[%clk 0:02:51.7]} 13. a3 {[%clk 0:02:56.6]} 13... Rfc8 {[%clk 0:02:47]} 14.
b4 {[%clk 0:02:54.5]} 14... a5 {[%clk 0:02:43.5]} 15. b5 {[%clk 0:02:48.2]}
15... Ne7 {[%clk 0:02:36.8]} 16. Na4 {[%clk 0:02:45.3]} 16... Ne4 {[%clk
0:02:16.5]} 17. Qb3 {[%clk 0:02:38.3]} 17... Ng5 {[%clk 0:01:54.3]} 18. Ne5
{[%clk 0:02:34.7]} 18... Be8 {[%clk 0:01:51.4]} 19. f4 {[%clk 0:02:30.1]} 19...
Nh7 {[%clk 0:01:51.9]} 20. Rc3 {[%clk 0:01:59.8]} 20... Rxc3 {[%clk 0:01:48.5]}
21. Nxc3 {[%clk 0:01:57.3]} 21... f6 {[%clk 0:01:43.5]} 22. Nf3 {[%clk
0:01:57.4]} 22... Nf8 {[%clk 0:01:33.6]} 23. Rc1 {[%clk 0:01:55.2]} 23... Rc8
{[%clk 0:01:32.2]} 24. Ne2 {[%clk 0:01:53.1]} 24... Rxc1+ {[%clk 0:01:30]} 25.
Nxc1 {[%clk 0:01:54]} 25... Bg6 {[%clk 0:01:12.1]} 26. Bxg6 {[%clk 0:01:51]}
26... Nfxg6 {[%clk 0:01:13]} 27. Nd3 {[%clk 0:01:49.8]} 27... Qd7 {[%clk
0:01:11.7]} 28. Kf2 {[%clk 0:01:37]} 28... Nf5 {[%clk 0:01:11.8]} 29. a4 {[%clk
0:01:35]} 29... Nd6 {[%clk 0:01:11.7]} 30. Nd2 {[%clk 0:01:34]} 30... Ne7 {[%clk
0:01:11.4]} 31. Qc2 {[%clk 0:01:27.8]} 31... Kf8 {[%clk 0:01:02.8]} 32. Ne1
{[%clk 0:01:20.3]} 32... Nef5 {[%clk 0:00:52.4]} 33. Nef3 {[%clk 0:01:20]} 33...
Ne7 {[%clk 0:00:46.7]} 34. g4 {[%clk 0:01:11]} 34... Qc8 {[%clk 0:00:32.5]} 35.
Qxc8+ {[%clk 0:01:09.8]} 35... Nexc8 {[%clk 0:00:32.5]} 36. Ke2 {[%clk
0:01:06.4]} 36... Kf7 {[%clk 0:00:31.3]} 37. Kd3 {[%clk 0:01:05.6]} 37... Ne7
{[%clk 0:00:31.6]} 38. h3 {[%clk 0:01:02.5]} 38... g5 {[%clk 0:00:31.2]} 39.
fxg5 {[%clk 0:00:55.3]} 39... hxg5 {[%clk 0:00:30.3]} 40. Ng1 {[%clk 0:00:50.5]}
40... Ng6 {[%clk 0:00:29.7]} 41. Ngf3 {[%clk 0:00:50.5]} 41... Ke7 {[%clk
0:00:26.6]} 42. Kc3 {[%clk 0:00:48.6]} 42... Nf7 {[%clk 0:00:26.1]} 43. Nf1
{[%clk 0:00:40.5]} 43... f5 {[%clk 0:00:21.9]} 44. Ng3 {[%clk 0:00:37.4]} 44...
f4 {[%clk 0:00:14.1]} 45. exf4 {[%clk 0:00:35.9]} 45... Nxf4 {[%clk 0:00:15]}
46. h4 {[%clk 0:00:33.8]} 46... gxh4 {[%clk 0:00:15.5]} 47. Nxh4 {[%clk
0:00:34.4]} 47... Ng5 {[%clk 0:00:16.2]} 48. Kd2 {[%clk 0:00:27.8]} 48... Kf6
{[%clk 0:00:14.7]} 49. Nh5+ {[%clk 0:00:27.5]} 49... Nxh5 {[%clk 0:00:13.8]} 50.
gxh5 {[%clk 0:00:27.9]} 50... Ne4+ {[%clk 0:00:13.7]} 51. Ke3 {[%clk 0:00:27.6]}
51... Nc3 {[%clk 0:00:07.1]} 52. Kd3 {[%clk 0:00:26.5]} 52... Ne4 {[%clk
0:00:05.5]} 53. h6 {[%clk 0:00:23.7]} 53... Ng5 {[%clk 0:00:05]} 54. Ke3 {[%clk
0:00:21.6]} 54... Nf7 {[%clk 0:00:05.5]} 55. Nf3 {[%clk 0:00:20.3]} 55... Kg6
{[%clk 0:00:04.9]} 56. Kf4 {[%clk 0:00:19.3]} 56... Kxh6 {[%clk 0:00:05.6]} 57.
Ne5 {[%clk 0:00:19.8]} 57... Nd6 {[%clk 0:00:04.1]} 58. Nd7 {[%clk 0:00:19.8]}
58... Nc4 {[%clk 0:00:04.7]} 59. Nf8 {[%clk 0:00:20]} 59... Kg7 {[%clk
0:00:03.8]} 60. Nxe6+ {[%clk 0:00:20.4]} 60... Kf6 {[%clk 0:00:04.2]} 61. Nc7
{[%clk 0:00:20.9]} 61... Ke7 {[%clk 0:00:04]} 62. Nxd5+ {[%clk 0:00:21]} 62...
Kd6 {[%clk 0:00:04.7]} 63. Nc3 {[%clk 0:00:21.3]} 63... Nb2 {[%clk 0:00:05.3]}
64. Ke4 {[%clk 0:00:21.5]} 64... Nc4 {[%clk 0:00:05.9]} 65. Kd3 {[%clk
0:00:21.5]} 65... Nb2+ {[%clk 0:00:05.5]} 66. Kc2 {[%clk 0:00:21.7]} 66... Nc4
{[%clk 0:00:06.2]} 67. Kd3 {[%clk 0:00:21]} 67... Nb2+ {[%clk 0:00:06.6]} 68.
Ke4 {[%clk 0:00:18.6]} 68... Nc4 {[%clk 0:00:07.1]} 69. Kd3 {[%clk 0:00:18.6]}
1/2-1/2